fUST/lending_fUST_20251007
["ID","MTS","AMOUNT","RATE_DAILY","PERIOD"]
[389789396,1759848648518,-163.033648,0.00023825,7]
[389789398,1759848648529,-151.0,0.00023825,7]
[389789400,1759848648539,-151.0,0.00023825,7]
[389789402,1759848648549,-151.0,0.00023825,7]
[389789404,1759848648559,-182.110453,0.00023825,7]
[389789406,1759848648569,-151.0,0.00023825,7]
[389789407,1759848648580,-151.0,0.00023825,7]
[389789409,1759848648591,-151.0,0.00023825,7]
[389789412,1759848648608,-190.443695,0.00023825,7]
[389789414,1759848648619,-190.443695,0.00023825,7]
[389789415,1759848648629,-1554.762305,0.00023825,7]
[389789416,1759848648639,-190.443695,0.00023825,7]
[389789417,1759848648649,-1554.762305,0.00023825,7]
[389789418,1759848648659,-190.443695,0.00023825,7]
[389789419,1759848648671,-1554.762305,0.00023825,7]
[389789420,1759848648682,-151.0,0.00023825,7]
[389789421,1759848648692,-1554.762305,0.00023825,7]
[389789422,1759848648703,-216.384438,0.00023825,7]
[389789423,1759848648714,-1003.75,0.00023835,2]
[389789424,1759848648724,-539.34,0.00023835,2]
[389789425,1759848648734,-500.0,0.00023838,2]
[389789426,1759848648743,-1000.0,0.0002384,5]
[389789427,1759848648753,-1000.0,0.0002384,5]
[389789428,1759848648762,-160.0,0.00023856,5]
[389789429,1759848648774,-276.39604321,0.00023856,5]
[389789430,1759848648786,-160.0,0.00023856,5]
[389789431,1759848648796,-290.26038213,0.00023856,10]
[389789432,1759848648807,-290.26038213,0.00023856,10]
[389789433,1759848648817,-290.26038213,0.00023856,10]
[389789434,1759848648827,-290.26038213,0.00023856,10]
[389789435,1759848648838,-1000.0,0.0002386,5]
[389789436,1759848648852,-1000.0,0.0002386,5]
[389789437,1759848648863,-336.27224742,0.00023861,8]
[389789438,1759848648873,-336.27224742,0.00023861,8]
[389789439,1759848648882,-336.27224742,0.00023861,8]
[389789440,1759848648891,-336.27224742,0.00023861,8]
[389789441,1759848648901,-1000.0,0.00023876,20]
[389789442,1759848648915,-1000.0,0.0002388,5]
[389789443,1759848648925,-1000.0,0.0002388,5]
[389789444,1759848648934,-800.0,0.00023897,2]
[389789445,1759848648944,-1000.0,0.000239,5]
[389789446,1759848648954,-1000.0,0.000239,5]
[389789447,1759848648965,-800.0,0.00023913,2]
[389789448,1759848648974,-800.0,0.00023915,2]
[389789449,1759848648985,-1330.0,0.00023917,2]
[389789450,1759848648995,-1000.0,0.0002392,5]
[389789451,1759848649005,-1000.0,0.0002392,5]
[389789452,1759848649015,-12597.79876203,0.00023921,2]
[389789453,1759848649024,-152.57221,0.0002393,7]
[389789454,1759848649038,-1000.0,0.0002394,5]
[389789455,1759848649048,-1000.0,0.0002394,5]
[389789456,1759848649058,-500.0,0.00023957,2]
[389789457,1759848649068,-1000.0,0.0002396,5]
[389789458,1759848649079,-1000.0,0.0002396,5]
[389789459,1759848649090,-1500.0,0.00023968,2]
[389789460,1759848649106,-1500.0,0.00023968,2]
[389789461,1759848649118,-1500.0,0.00023968,2]
[389789462,1759848649129,-1500.0,0.00023968,2]
[389789463,1759848649139,-1500.0,0.00023968,2]
[389789464,1759848649150,-1500.0,0.00023968,2]
[389789465,1759848649161,-1500.65714995,0.00023968,2]
[389789466,1759848649171,-1500.0,0.00023968,2]
[389789468,1759848649181,-503.8692163,0.00023968,2]
[389789470,1759848649192,-1500.0,0.00023968,2]
[389789472,1759848649202,-1500.0,0.00023968,2]
[389789475,1759848649213,-1500.0,0.00023968,2]
[389789477,1759848649223,-1500.0,0.00023968,2]
[389789478,1759848649233,-1500.0,0.00023968,2]
[389789480,1759848649243,-1500.0,0.00023968,2]
[389789483,1759848649253,-1500.0,0.00023968,2]
[389789484,1759848649263,-1500.0,0.00023968,2]
[389789486,1759848649272,-674.06112132,0.00023968,2]
[389789489,1759848649282,-1500.0,0.00023968,2]
[389789491,1759848649292,-1500.0,0.00023968,2]
[389789493,1759848649302,-1364.44052053,0.00023968,2]
[389789495,1759848649311,-500.0,0.0002397,2]
[389789497,1759848649321,-1060.0,0.00023976,2]
[389789499,1759848649331,-1000.0,0.0002398,5]
[389789501,1759848649341,-1000.0,0.0002398,5]
[389789503,1759848649353,-290.26038213,0.00023996,12]
[389789505,1759848649364,-1713.53526762,0.00024,2]
[389789507,1759848649374,-163.57126156,0.00024,2]
[389789509,1759848649385,-626.84488894,0.00024,2]
[389789511,1759848649395,-160.0,0.00024,7]
[389789513,1759848649404,-2009.59,0.00024,2]
[389789515,1759848649414,-6221.75492049,0.00024,2]
[389789517,1759848649424,-269.0,0.00024,2]
[389789519,1759848649434,-18000.0,0.00024,7]
[389789521,1759848649444,-160.0,0.00024,7]
[389789523,1759848649455,-234.20938206,0.00024,7]
[389789525,1759848649465,-234.20938206,0.00024,7]
[389789527,1759848649475,-225.54527689,0.00024,7]
[389789529,1759848649485,-278.802142,0.00024,7]
[389789531,1759848649495,-151.821237,0.00024,7]
[389789533,1759848649505,-278.802142,0.00024,7]
[389789535,1759848649515,-278.802142,0.00024,7]
[389789537,1759848649524,-278.802142,0.00024,7]
[389789539,1759848649534,-151.0,0.00024,7]
[389789542,1759848649544,-151.0,0.00024,7]
[389789544,1759848649554,-175.0,0.00024,3]
[389789546,1759848649563,-175.0,0.00024,3]
[389789548,1759848649574,-175.0,0.00024,3]
[389789550,1759848649584,-174.8657094,0.00024,3]
[389789552,1759848649596,-152.0,0.00024,3]
[389789554,1759848649607,-152.0,0.00024,3]
[389789556,1759848649620,-152.0,0.00024,3]
[389789558,1759848649631,-152.0,0.00024,3]
[389789560,1759848649642,-152.0,0.00024,3]
[389789562,1759848649652,-152.0,0.00024,3]
[389789564,1759848649661,-152.0,0.00024,3]
[389789566,1759848649671,-152.0,0.00024,3]
[389789568,1759848649681,-152.0,0.00024,3]
[389789570,1759848649691,-152.0,0.00024,3]
[389789572,1759848649701,-152.0,0.00024,3]
[389789574,1759848649711,-152.0,0.00024,3]
[389789576,1759848649721,-152.0,0.00024,3]
[389789578,1759848649731,-152.0,0.00024,3]
[389789580,1759848649742,-152.0,0.00024,3]
[389789582,1759848649752,-329.0,0.00024,3]
[389789585,1759848649762,-152.0,0.00024,3]
[389789586,1759848649772,-152.0,0.00024,3]
[389789589,1759848649783,-329.0,0.00024,3]
[389789591,1759848649793,-152.0,0.00024,3]
[389789593,1759848649802,-329.0,0.00024,3]
[389789595,1759848649812,-152.0,0.00024,3]
[389789596,1759848649821,-329.0,0.00024,3]
[389789599,1759848649832,-329.0,0.00024,3]
[389789601,1759848649841,-329.0,0.00024,3]
[389789603,1759848649856,-152.0,0.00024,3]
[389789605,1759848649867,-329.0,0.00024,3]
[389789607,1759848649877,-152.0,0.00024,3]
[389789609,1759848649889,-152.0,0.00024,3]
[389789611,1759848649899,-329.0,0.00024,3]
[389789613,1759848649908,-152.0,0.00024,3]
[389789615,1759848649918,-161.52172655,0.00024,3]
[389789617,1759848649929,-152.0,0.00024,3]
[389789618,1759848649939,-152.0,0.00024,3]
[389789619,1759848649950,-152.0,0.00024,3]
[389789620,1759848649961,-152.0,0.00024,3]
[389789621,1759848649971,-152.0,0.00024,3]
[389789622,1759848649981,-152.0,0.00024,3]
[389789623,1759848649991,-152.0,0.00024,3]
[389789624,1759848650001,-152.0,0.00024,3]
[389789625,1759848650011,-152.0,0.00024,3]
[389789627,1759848650021,-152.0,0.00024,3]
[389789629,1759848650032,-152.0,0.00024,3]
[389789631,1759848650045,-152.0,0.00024,3]
[389789633,1759848650056,-152.0,0.00024,3]
[389789635,1759848650065,-152.0,0.00024,3]
[389789637,1759848650075,-152.0,0.00024,3]
[389789639,1759848650086,-152.0,0.00024,3]
[389789641,1759848650099,-152.0,0.00024,3]
[389789644,1759848650110,-152.0,0.00024,3]
[389789646,1759848650122,-152.0,0.00024,3]
[389789648,1759848650132,-152.0,0.00024,3]
[389789650,1759848650143,-152.0,0.00024,3]
[389789652,1759848650153,-152.0,0.00024,3]
[389789654,1759848650164,-152.0,0.00024,3]
[389789656,1759848650175,-152.0,0.00024,3]
[389789658,1759848650186,-215.33827402,0.00024,3]
[389789660,1759848650197,-1000.0,0.00024,5]
[389789662,1759848650207,-1000.0,0.00024,5]
[389789664,1759848650219,-1000.0,0.00024,2]
[389789666,1759848650229,-250.0,0.00024,10]
[389789669,1759848650239,-336.27224742,0.00024002,10]
[389789671,1759848650252,-336.27224742,0.00024002,10]
[389789673,1759848650262,-336.27224742,0.00024002,10]
[389789675,1759848650272,-800.0,0.00024015,2]
[389789677,1759848650282,-500.0,0.00024017,2]
[389789679,1759848650292,-1000.0,0.00024021,2]
[389789681,1759848650302,-1000.0,0.00024021,2]
[389789683,1759848650312,-1000.0,0.00024021,2]
[389789685,1759848650322,-1000.0,0.00024021,2]
[389789687,1759848650332,-603.92426928,0.00024021,2]
[389789689,1759848650343,-1000.0,0.00024021,2]
[389789691,1759848650360,-1000.0,0.00024021,2]
[389789693,1759848650370,-1000.0,0.00024021,2]
[389789695,1759848650380,-1003.7657808,0.00024021,2]
[389789697,1759848650390,-1000.0,0.00024021,2]
[389789699,1759848650400,-1000.0,0.00024021,2]
[389789701,1759848650410,-1000.0,0.00024021,2]
[389789703,1759848650419,-193.22369181,0.0002407,2]
[389789705,1759848650429,-500.0,0.00024087,2]
[389789707,1759848650439,-152.57221,0.00024088,10]
[389789709,1759848650448,-485.81351994,0.00024096,2]
[389789711,1759848650458,-200.0,0.000241,2]
[389789713,1759848650468,-250.0,0.000241,10]
[389789716,1759848650479,-800.0,0.00024104,2]
[389789718,1759848650490,-1003.75,0.00024109,2]
[389789720,1759848650501,-539.34,0.00024109,2]
[389789722,1759848650512,-1000.0,0.00024116,2]
[389789724,1759848650522,-5000.0,0.00024132,2]
[389789726,1759848650532,-151.0,0.00024132,7]
[389789728,1759848650543,-151.0,0.00024132,7]
[389789730,1759848650554,-151.0,0.00024132,7]
[389789733,1759848650565,-151.0,0.00024132,7]
[389789735,1759848650577,-151.0,0.00024132,7]
[389789737,1759848650588,-276.279828,0.00024132,7]
[389789739,1759848650603,-226.855339,0.00024132,7]
[389789741,1759848650613,-226.855339,0.00024132,7]
[389789763,1759848650816,-226.855339,0.00024132,7]
[389789765,1759848650828,-226.855339,0.00024132,7]
[389789768,1759848650838,-320.0,0.00024132,7]
[389789770,1759848650851,-320.0,0.00024132,7]
[389789772,1759848650861,-320.0,0.00024132,7]
[389789774,1759848650871,-320.0,0.00024132,7]
[389789776,1759848650880,-151.0,0.00024132,7]
[389789778,1759848650890,-151.0,0.00024132,7]
[389789780,1759848650901,-151.0,0.00024132,7]
[389789782,1759848650912,-151.0,0.00024132,7]
[389789784,1759848650929,-10000.0,0.00024132,7]
[389789786,1759848650938,-10000.0,0.00024132,7]
[389789788,1759848650948,-1000.0,0.00024136,2]
[389789790,1759848650958,-1000.0,0.00024136,2]
[389789792,1759848650967,-1000.0,0.00024136,2]
[389789794,1759848650976,-587.52997671,0.00024136,2]
[389789796,1759848650988,-1000.0,0.00024136,2]
[389789798,1759848650997,-1000.0,0.00024136,2]
[389789800,1759848651009,-160.0,0.00024137,5]
[389789802,1759848651018,-800.0,0.00024159,2]
[389789804,1759848651028,-800.0,0.00024182,2]
[389789806,1759848651043,-1000.0,0.00024189,2]
[389789808,1759848651052,-1330.0,0.00024191,2]
[389789810,1759848651061,-14031.62,0.000242,2]
[389789812,1759848651071,-250.0,0.000242,10]
[389789814,1759848651082,-500.0,0.00024238,2]
[389789816,1759848651091,-276.14758765,0.0002425,7]
[389789818,1759848651104,-349.13553878,0.0002425,7]
[389789820,1759848651115,-336.27224742,0.00024284,14]
[389789822,1759848651125,-533.72506543,0.000243,3]
[389789824,1759848651135,-402.02512307,0.000243,3]
[389789826,1759848651144,-250.0,0.000243,10]
[389789828,1759848651154,-1000.0,0.00024321,2]
[389789830,1759848651163,-1000.0,0.00024321,2]
[389789832,1759848651173,-1000.0,0.00024321,2]
[389789834,1759848651182,-1000.0,0.00024321,2]
[389789837,1759848651192,-1000.0,0.00024321,2]
[389789839,1759848651202,-1000.0,0.00024321,2]
[389789841,1759848651213,-1000.0,0.00024321,2]
[389789843,1759848651222,-1000.0,0.00024321,2]
[389789845,1759848651232,-263.52879984,0.00024321,2]
[389789847,1759848651242,-258.0272099,0.00024321,2]
[389789849,1759848651252,-151.0,0.00024321,7]
[389789851,1759848651262,-151.0,0.00024321,7]
[389789853,1759848651272,-368.90712,0.00024321,2]
[389789855,1759848651282,-368.90712,0.00024321,2]
[389789857,1759848651293,-368.90712,0.00024321,2]
[389789859,1759848651302,-151.0,0.00024321,7]
[389789861,1759848651313,-368.90712,0.00024321,2]
[389789863,1759848651323,-151.0,0.00024321,7]
[389789865,1759848651333,-151.0,0.00024321,7]
[389789867,1759848651343,-572.09867,0.00024321,7]
[389789869,1759848651356,-572.09867,0.00024321,7]
[389789871,1759848651366,-572.09867,0.00024321,7]
[389789874,1759848651376,-572.09867,0.00024321,7]
[389789876,1759848651386,-151.0,0.00024321,7]
[389789878,1759848651395,-151.0,0.00024321,7]
[389789880,1759848651405,-151.0,0.00024321,7]
[389789882,1759848651415,-151.0,0.00024321,7]
[389789884,1759848651425,-151.0,0.00024321,7]
[389789886,1759848651434,-296.91476082,0.00024321,7]
[389789888,1759848651443,-500.0,0.00024321,2]
[389789890,1759848651452,-6000.0,0.00024334,2]
[389789892,1759848651461,-800.0,0.00024343,2]
[389789894,1759848651470,-500.0,0.00024367,2]
[389789896,1759848651479,-1056.8347076,0.00024369,2]
[389789898,1759848651489,-1003.75,0.00024383,2]
[389789900,1759848651498,-539.34,0.00024383,2]
[389789902,1759848651508,-151.0,0.000244,7]
[389789904,1759848651518,-151.0,0.000244,7]
[389789906,1759848651527,-151.0,0.000244,7]
[389789908,1759848651536,-151.0,0.000244,7]
[389789910,1759848651546,-259.541923,0.000244,7]
[389789912,1759848651555,-151.0,0.000244,7]
[389789914,1759848651565,-151.0,0.000244,7]
[389789916,1759848651575,-227.799902,0.000244,7]
[389789918,1759848651585,-227.799902,0.000244,7]
[389789920,1759848651594,-227.799902,0.000244,7]
[389789922,1759848651606,-227.799902,0.000244,7]
[389789924,1759848651615,-151.0,0.000244,7]
[389789926,1759848651626,-151.0,0.000244,7]
[389789928,1759848651636,-151.0,0.000244,7]
[389789930,1759848651646,-151.0,0.000244,7]
[389789932,1759848651656,-151.0,0.000244,7]
[389789934,1759848651666,-151.0,0.000244,7]
[389789936,1759848651676,-151.0,0.000244,7]
[389789938,1759848651686,-151.0,0.000244,7]
[389789940,1759848651695,-250.0,0.000244,10]
[389789942,1759848651704,-190.254912,0.000244,7]
[389789944,1759848651714,-151.0,0.000244,7]
[389789946,1759848651724,-190.254912,0.000244,7]
[389789948,1759848651733,-151.0,0.000244,7]
[389789950,1759848651743,-190.254912,0.000244,7]
[389789952,1759848651752,-190.254912,0.000244,7]
[389789954,1759848651762,-3383.0133844,0.000244,2]
[389789956,1759848651771,-151.0,0.000244,7]
[389789958,1759848651780,-1024.730886,0.000244,7]
[389789959,1759848651790,-1024.730886,0.000244,7]
[389789961,1759848651800,-1024.730886,0.000244,7]
[389789963,1759848651810,-1024.730886,0.000244,7]
[389789965,1759848651820,-432.621204,0.000244,7]
[389789967,1759848651830,-432.621204,0.000244,7]
[389789969,1759848651840,-432.621204,0.000244,7]
[389789971,1759848651852,-432.621204,0.000244,7]
[389789974,1759848651862,-151.0,0.000244,7]
[389789976,1759848651872,-858.594354,0.000244,7]
[389789977,1759848651882,-151.0,0.000244,7]
[389789980,1759848651892,-1354.835159,0.000244,7]
[389789982,1759848651902,-1354.835159,0.000244,7]
[389789984,1759848651912,-1354.835159,0.000244,7]
[389789986,1759848651921,-1354.835159,0.000244,7]
[389789988,1759848651931,-858.594354,0.000244,7]
[389789990,1759848651940,-858.594354,0.000244,7]
[389789992,1759848651949,-858.594354,0.000244,7]
[389789994,1759848651958,-151.0,0.000244,7]
[389789995,1759848651967,-151.0,0.000244,7]
[389789997,1759848651977,-285.358444,0.000244,7]
[389789998,1759848651987,-218.264212,0.000244,7]
[389790000,1759848651996,-218.264212,0.000244,7]
[389790002,1759848652005,-218.264212,0.000244,7]
[389790003,1759848652014,-218.264212,0.000244,7]
[389790005,1759848652025,-151.0,0.000244,7]
[389790006,1759848652034,-246.368308,0.000244,7]
[389790008,1759848652045,-246.368308,0.000244,7]
[389790010,1759848652059,-151.0,0.000244,7]
[389790012,1759848652070,-246.368308,0.000244,7]
[389790014,1759848652080,-151.0,0.000244,7]
[389790016,1759848652090,-246.368308,0.000244,7]
[389790019,1759848652102,-151.0,0.000244,7]
[389790021,1759848652112,-255.24656141,0.000244,7]
[389790023,1759848652122,-152.571811,0.000244,7]
[389790025,1759848652133,-151.0,0.000244,7]
[389790027,1759848652142,-712.235839,0.000244,7]
[389790029,1759848652153,-712.235839,0.000244,7]
[389790031,1759848652163,-712.235839,0.000244,7]
[389790033,1759848652172,-64.64458254,0.000244,7]
[389790118,1759848653263,-982.18424101,0.000229,7]
[389790119,1759848653844,-344.44134747,0.0002014,2]
[389790132,1759848654247,-66.55865253,0.0002014,2]
[389790133,1759848654257,-9017.81575899,0.000229,7]
[389790134,1759848654267,-151.0,0.000229,7]
[389790135,1759848654277,-2982.08823298,0.000229,7]
[389790136,1759848656027,1969.388,0.00028767,120]
[389790139,1759848773416,-251.22472219,0.000174,2]
[389790140,1759848890675,354.894618,0.000167,2]
[389790141,1759848943278,-35.66011508,0.000174,2]
[389790142,1759848943304,-171.14,0.00017478,3]
[389790143,1759848943327,-91.18377288,0.00017478,3]
[389790144,1759848989144,-250.34740664,0.00017478,3]
[389790146,1759849318989,602.649422,0.00013699,2]
[389790148,1759849450766,-392.31114372,0.00017385,2]
[389790149,1759849581299,666.0,0.00016458,2]
[389790153,1759849680280,273.29,0.00015225,2]
[389790154,1759849711654,-162.56582709,0.00017378,2]
[389790216,1759849832456,-394.22525126,0.00017383,2]
[389790218,1759849832466,-630.65767732,0.00017387,2]
[389790220,1759849832478,-1248.6444067,0.00017387,2]
[389790222,1759849832488,-1200.0,0.00017398,2]
[389790223,1759849832499,-300.0,0.00017398,2]
[389790224,1759849832508,-300.0,0.00017398,2]
[389790225,1759849832520,-289.0,0.00017398,2]
[389790226,1759849832531,-1200.0,0.00017399,2]
[389790228,1759849832541,-500.0,0.000174,2]
[389790230,1759849832551,-9625.53271884,0.000174,2]
[389790231,1759849832560,-500.0,0.00017473,2]
[389790233,1759849832572,-201.19665946,0.00017473,2]
[389790235,1759849832581,-501.58581125,0.00017473,2]
[389790237,1759849832591,-500.0,0.00017473,2]
[389790239,1759849832601,-500.0,0.00017473,2]
[389790241,1759849832611,-501.47199974,0.00017473,2]
[389790243,1759849832620,-504.95080619,0.00017473,2]
[389790245,1759849832629,-500.0,0.00017473,2]
[389790247,1759849832638,-501.27269992,0.00017473,2]
[389790249,1759849832647,-500.0,0.00017473,2]
[389790251,1759849832657,-501.02357806,0.00017473,2]
[389790253,1759849832666,-501.39731,0.00017473,2]
[389790255,1759849832676,-159.63927334,0.00017473,2]
[389790257,1759849832686,-500.0,0.00017473,2]
[389790259,1759849832695,-500.0,0.00017473,2]
[389790261,1759849832705,-229.39684636,0.00017473,2]
[389790263,1759849832715,-500.0,0.00017473,2]
[389790265,1759849832725,-502.06029178,0.00017473,2]
[389790267,1759849832735,-500.0,0.00017473,2]
[389790269,1759849832744,-500.0,0.00017473,2]
[389790271,1759849832755,-500.0,0.00017473,2]
[389790273,1759849832767,-501.28381945,0.00017473,2]
[389790275,1759849832777,-453.10859783,0.00017473,2]
[389790277,1759849832787,-500.0,0.00017473,2]
[389790279,1759849832796,-500.0,0.00017473,2]
[389790281,1759849832806,-183.04545071,0.00017473,2]
[389790283,1759849832815,-500.0,0.00017473,2]
[389790285,1759849832825,-500.85193881,0.00017473,2]
[389790287,1759849832836,-500.0,0.00017473,2]
[389790289,1759849832845,-500.0,0.00017473,2]
[389790291,1759849832854,-492.93,0.00017478,3]
[389790293,1759849832864,-246.46,0.00017478,3]
[389790295,1759849832875,-739.42,0.00017478,3]
[389790297,1759849832884,-304.14,0.00017478,3]
[389790299,1759849832894,-677.78,0.00017478,3]
[389790301,1759849832905,-200.0,0.00017482,2]
[389790303,1759849832914,-500.0,0.00017485,2]
[389790305,1759849832924,-500.0,0.00017485,2]
[389790307,1759849832933,-183.41899847,0.00017485,2]
[389790309,1759849832942,-365.69232602,0.00017485,2]
[389790311,1759849832952,-500.0,0.00017485,2]
[389790313,1759849832962,-500.0,0.00017485,2]
[389790315,1759849832971,-500.0,0.00017485,2]
[389790317,1759849832981,-500.0,0.00017485,2]
[389790319,1759849832990,-500.0,0.00017485,2]
[389790321,1759849833000,-299.66912085,0.00017485,2]
[389790323,1759849833009,-500.0,0.00017485,2]
[389790325,1759849833023,-276.17688339,0.00017485,2]
[389790327,1759849833032,-500.0,0.00017485,2]
[389790329,1759849833042,-500.0,0.00017485,2]
[389790331,1759849833053,-500.0,0.00017485,2]
[389790333,1759849833064,-500.0,0.00017485,2]
[389790335,1759849833074,-500.0,0.00017485,2]
[389790337,1759849833084,-500.0,0.00017485,2]
[389790339,1759849833095,-500.0,0.00017485,2]
[389790341,1759849833104,-500.0,0.00017485,2]
[389790343,1759849833114,-500.0,0.00017485,2]
[389790345,1759849833123,-500.0,0.00017485,2]
[389790347,1759849833133,-500.0,0.00017485,2]
[389790349,1759849833142,-500.0,0.00017485,2]
[389790351,1759849833152,-500.0,0.00017485,2]
[389790353,1759849833161,-500.0,0.00017485,2]
[389790355,1759849833170,-176.11700989,0.00017485,2]
[389790356,1759849833180,-500.0,0.00017485,2]
[389790358,1759849833190,-500.0,0.00017485,2]
[389790359,1759849833199,-500.0,0.00017485,2]
[389790360,1759849833209,-500.0,0.00017485,2]
[389790361,1759849833218,-206.71594665,0.00017485,2]
[389790362,1759849833228,-154.72717042,0.00017485,2]
[389790363,1759849833237,-540.19256434,0.00017485,2]
[389790364,1759849833247,-500.0,0.00017485,2]
[389790365,1759849833258,-500.0,0.00017485,2]
[389790366,1759849833271,-200.72044129,0.00017485,2]
[389790367,1759849833282,-2000.0,0.00017486,2]
[389790368,1759849833292,-2000.0,0.00017486,2]
[389790369,1759849833301,-2000.0,0.00017486,2]
[389790370,1759849833312,-2000.0,0.00017486,2]
[389790371,1759849833322,-2000.0,0.00017486,2]
[389790372,1759849833332,-2000.0,0.00017486,2]
[389790373,1759849833342,-2000.0,0.00017486,2]
[389790374,1759849833352,-2000.0,0.00017486,2]
[389790375,1759849833361,-2000.0,0.00017486,2]
[389790376,1759849833371,-2000.0,0.00017486,2]
[389790377,1759849833381,-2000.0,0.00017486,2]
[389790378,1759849833391,-2000.0,0.00017486,2]
[389790379,1759849833400,-2000.0,0.00017486,2]
[389790380,1759849833410,-2000.0,0.00017486,2]
[389790381,1759849833419,-2000.0,0.00017486,2]
[389790382,1759849833428,-2000.0,0.00017486,2]
[389790383,1759849833438,-2000.0,0.00017486,2]
[389790384,1759849833447,-2000.0,0.00017486,2]
[389790385,1759849833458,-2000.0,0.00017486,2]
[389790386,1759849833468,-2000.0,0.00017486,2]
[389790387,1759849833478,-2000.0,0.00017486,2]
[389790389,1759849833492,-2000.0,0.00017486,2]
[389790390,1759849833502,-2000.0,0.00017486,2]
[389790392,1759849833511,-2000.0,0.00017486,2]
[389790394,1759849833526,-2000.0,0.00017486,2]
[389790396,1759849833535,-2000.0,0.00017486,2]
[389790398,1759849833545,-2000.0,0.00017486,2]
[389790399,1759849833554,-226.749,0.00017486,2]
[389790401,1759849833565,-2000.0,0.00017486,2]
[389790403,1759849833574,-500.0,0.00017487,2]
[389790405,1759849833584,-500.0,0.00017487,2]
[389790407,1759849833593,-355.6300564,0.00017487,2]
[389790409,1759849833603,-241.91057914,0.00017487,2]
[389790411,1759849833612,-276.22198637,0.00017487,2]
[389790413,1759849833621,-219733.01934691,0.00017488,2]
[389790418,1759849833662,-6408.75327642,0.00017488,2]
[389790420,1759849833673,-829.04900004,0.00017488,2]
[389790422,1759849833684,-113249.99999994,0.00017488,2]
[389790424,1759849833695,-6310.07919568,0.00017488,2]
[389790426,1759849833711,-9434.39143196,0.00017488,2]
[389790429,1759849833722,-3914.39,0.00017488,2]
[389790625,1759849838454,-10120.31774905,0.00017488,2]
[389790626,1759849838466,-151.0,0.000175,2]
[389790627,1759849838476,-151.0,0.000175,2]
[389790628,1759849838491,-151.0,0.000175,2]
[389790629,1759849838501,-1879.30208398,0.00017657,2]
[389790631,1759849838511,-151.0,0.000177,2]
[389790633,1759849838527,-151.0,0.000177,2]
[389790635,1759849838537,-966.46148311,0.00017808,7]
[389790637,1759849838547,-300.0,0.00017837,2]
[389790639,1759849838557,-300.0,0.00017837,2]
[389790641,1759849838568,-300.0,0.00017837,2]
[389790643,1759849838578,-300.0,0.00017837,2]
[389790645,1759849838588,-300.0,0.00017837,2]
[389790647,1759849838597,-300.0,0.00017837,2]
[389790649,1759849838607,-300.0,0.00017837,2]
[389790652,1759849838618,-300.0,0.00017837,2]
[389790654,1759849838628,-300.0,0.00017837,2]
[389790655,1759849838638,-300.0,0.00017837,2]
[389790656,1759849838648,-300.0,0.00017837,2]
[389790657,1759849838657,-300.0,0.00017837,2]
[389790658,1759849838667,-300.0,0.00017837,2]
[389790659,1759849838678,-300.0,0.00017837,2]